bitfinex-derivatives/quotes_ETHF0:USTF0_20250213
["timestamp","ask_amount","ask_price","bid_price","bid_amount"]
[1739454191786,0.7492,2669.1,2669.0,2.93e-06]
[1739454197589,10.60663476,2669.1,2669.0,2.93e-06]
[1739454197795,10.67164578,2669.1,2669.0,2.93e-06]
[1739454197995,10.67164498,2669.1,2669.0,2.93e-06]
[1739454198303,10.60663476,2669.1,2669.0,2.93e-06]
[1739454198800,10.67164489,2669.1,2669.0,2.93e-06]
[1739454200088,10.67164778,2669.1,2669.0,2.93e-06]
[1739454200401,11.13283263,2669.1,2669.0,2.93e-06]
[1739454201102,0.74954,2667.9,2667.8,10.5375]
[1739454201292,0.74954,2667.9,2667.8,5.6663]
[1739454201893,0.74954,2667.9,2667.8,6.41585]
[1739454202092,8.93883476,2668.3,2667.8,6.41585]
[1739454202296,3.2078,2668.3,2667.8,5.6663]
[1739454202495,0.74954,2667.9,2667.8,5.6663]
[1739454203096,5.0814,2668.3,2667.8,6.41587]
[1739454203300,3.95724,2668.3,2667.8,5.6663]
[1739454203498,1.87358,2668.3,2667.8,2.4585]
[1739454203698,0.74954,2667.9,2667.8,2.4585]
[1739454204298,0.74953,2668.0,2667.8,3.20805]
[1739454204605,2.157,2668.5,2667.8,5.6663]
[1739454204799,2.157,2668.5,2667.8,7.5402]
[1739454205005,0.74943,2668.3,2667.8,7.5402]
[1739454205302,2.157,2668.5,2667.8,5.6663]
[1739454205501,3.2078,2668.4,2667.8,5.6663]
[1739454205696,0.74954,2667.9,2667.8,2.4585]
[1739454206497,1.87358,2668.3,2667.8,2.4585]
[1739454206802,3.2078,2668.4,2667.8,2.4585]
[1739454207103,4.03046,2668.5,2667.8,2.4585]
[1739454207104,0.74948,2668.2,2668.0,0.74949]
[1739454207303,3.2078,2668.4,2667.8,5.6663]
[1739454207497,0.74954,2667.9,2667.8,6.41585]
[1739454207698,0.74954,2667.9,2667.8,3.2078]
[1739454208702,0.74953,2668.0,2667.9,0.74953]
[1739454208907,1.87358,2668.3,2667.8,3.2078]
[1739454209294,3.2078,2668.1,2667.6,0.00562293]
[1739454209636,0.7496,2667.7,2667.6,0.00562293]
[1739454210600,0.74957,2667.8,2667.7,0.74958]
[1739454210800,2.5306,2668.4,2667.6,5.08744293]
[1739454211004,0.74947,2668.2,2668.1,0.74947]
[1739454211305,0.74949,2668.1,2668.0,0.7495]
[1739454211499,0.74949,2668.2,2668.1,0.74947]
[1739454212009,3.2078,2668.6,2667.6,3.21342293]
[1739454212010,7.06523476,2668.6,2667.6,3.21342293]
[1739454212203,0.7496,2667.7,2667.6,0.00562293]
[1739454212604,0.7496,2667.7,2667.6,0.75524293]
[1739454212805,0.7496,2667.7,2667.6,0.00562293]
[1739454213005,0.74958,2667.8,2667.7,0.74957]
[1739454213199,0.74957,2667.9,2667.8,0.74957]
[1739454213802,3.2078,2668.0,2667.6,3.21342293]
[1739454214005,0.7496,2667.7,2667.6,3.96303293]
[1739454214206,0.7496,2667.7,2667.6,0.75523293]
[1739454214505,0.7496,2667.7,2667.6,0.00562293]
[1739454215100,3.9574,2667.7,2667.6,0.00562293]
[1739454215295,3.9574,2667.7,2667.0,3.2078]
[1739454215296,3.2078,2667.7,2667.0,3.2078]
[1739454215602,1.8742,2667.5,2667.0,3.2078]
[1739454215806,1.8742,2667.5,2667.0,3.95758]
[1739454215807,0.74977,2667.1,2667.0,3.95758]
[1739454216003,0.74977,2667.1,2667.0,3.2078]
[1739454217508,0.00562293,2667.3,2667.0,3.95758]
[1739454217818,0.00562293,2667.3,2667.2,0.74974]
[1739454218114,0.00562293,2667.3,2667.0,3.2078]
[1739454218404,0.00562293,2667.3,2667.1,0.74975]
[1739454218708,0.00562293,2667.3,2667.2,0.74974]
[1739454218912,0.00562293,2667.3,2667.0,3.2078]
[1739454219111,0.00562293,2667.3,2667.1,2.4917]
[1739454219303,0.00562293,2667.3,2667.2,0.74974]
[1739454219704,0.00562293,2667.3,2667.2,3.15584]
[1739454221009,3.2078,2668.3,2667.2,3.15584]
[1739454221311,2.4202,2668.6,2668.0,3.2078]
[1739454221903,3.2078,2668.7,2668.0,3.2078]
[1739454222102,3.2078,2668.7,2668.1,2.4061]
[1739454222103,0.74946,2668.2,2668.1,2.4061]
[1739454222610,3.2078,2668.4,2667.8,4.9944]
[1739454222809,0.7496,2667.7,2667.6,2.5681]
[1739454223311,2.3313,2668.3,2667.7,0.7496]
[1739454223610,2.3313,2668.3,2667.6,3.31771]
[1739454223611,0.74957,2667.8,2667.6,3.31771]
[1739454223808,0.7496,2667.7,2667.6,2.5681]
[1739454224204,1.87393,2667.8,2667.1,5.7146]
[1739454224416,0.74972,2667.3,2667.1,5.7146]
[1739454224715,0.74974,2667.2,2667.1,3.2078]
[1739454226110,3.2078,2667.3,2666.9,2.5681]
[1739454226306,0.74973,2667.3,2666.9,2.5681]
[1739454226616,2.5024,2667.6,2666.9,2.5681]
[1739454226818,0.74979,2667.1,2666.9,2.5681]
[1739454227213,3.2078,2667.4,2666.9,2.5681]
[1739454227512,3.2078,2667.4,2667.0,0.74978]
[1739454227714,3.2078,2667.4,2666.9,2.5681]
[1739454228019,3.2078,2667.4,2666.8,3.21342293]
[1739454228207,0.74979,2667.1,2666.8,3.96326293]
[1739454228410,0.74979,2667.1,2666.8,3.21342293]
[1739454228615,0.74981,2667.0,2666.8,3.21342293]
[1739454228817,3.2078,2667.4,2666.8,3.21342293]
[1739454229116,0.74981,2667.0,2666.8,3.96325293]
[1739454229712,3.2078,2667.4,2666.8,3.96325293]
[1739454229713,0.74982,2666.9,2666.8,3.21342293]
[1739454230010,0.74982,2666.9,2666.8,0.00562293]
[1739454231217,3.2078,2667.1,2666.8,0.00562293]
[1739454231410,3.95758,2667.1,2666.9,0.74981]
[1739454231606,3.2078,2667.1,2666.9,0.74981]
[1739454231913,3.2078,2667.1,2666.8,0.00562293]
[1739454232117,0.74982,2666.9,2666.8,0.00562293]
[1739454235117,2.4406,2667.0,2666.1,3.2078]
[1739454235418,0.75004,2666.2,2666.0,0.75007]
[1739454235618,3.2078,2666.5,2665.8,2.153]
[1739454235912,3.2078,2666.5,2665.9,0.7501]
[1739454235913,0.75006,2666.1,2665.9,0.7501]
[1739454236121,3.2078,2666.5,2666.0,0.75007]
[1739454236311,0.00562293,2666.3,2665.8,42.953]
[1739454236511,0.75009,2666.0,2665.8,0.75011]
[1739454236911,0.75009,2666.0,2665.7,3.21342293]
[1739454236912,0.75013,2665.8,2665.7,3.21342293]
[1739454237114,0.75013,2665.8,2665.7,0.00562293]
[1739454238120,7.47195,2666.2,2665.7,0.75578293]
[1739454238121,0.75012,2665.9,2665.7,0.75578293]
[1739454238319,0.75013,2665.8,2665.7,0.00562293]
[1739454239720,0.75013,2665.9,2665.7,0.75578293]
[1739454239918,5.5969,2666.2,2665.7,0.00562293]
[1739454240117,5.5969,2666.2,2665.8,0.75011]
[1739454240416,0.75013,2665.8,2665.7,0.00562293]
[1739454243118,3.09003,2665.8,2665.7,0.00562293]
[1739454243824,0.75024,2665.5,2665.3,0.75026]
[1739454244125,2.3399,2665.8,2665.1,8.0342]
[1739454244323,0.75018,2665.7,2665.5,0.7502]
[1739454244717,2.3399,2665.8,2665.1,8.0342]
[1739454244924,2.3399,2665.8,2665.3,0.00562293]
[1739454245119,0.75017,2665.7,2665.5,0.75019]
[1739454245320,0.75017,2665.7,2665.6,0.75019]
[1739454245522,2.3399,2665.8,2665.4,3.2078]
[1739454245726,0.75018,2665.7,2665.6,0.75019]
[1739454246027,0.75016,2665.7,2665.6,0.75016]
[1739454246430,2.3891,2666.2,2665.5,3.85743476]
[1739454246625,2.3891,2666.2,2665.7,3.2078]
[1739454247227,0.00562293,2666.3,2665.3,2.15662293]
[1739454247228,0.00562293,2666.3,2666.0,3.2078]
[1739454247523,0.00562293,2666.3,2666.2,0.75002]
[1739454248120,0.75561293,2666.3,2666.2,0.75002]
[1739454249630,0.00562293,2666.3,2666.2,0.75002]
[1739454250130,0.00562293,2666.3,2666.2,3.21962]
[1739454251123,3.2078,2667.2,2666.2,9.21962]
[1739454251426,3.2078,2667.2,2666.6,3.2078]
[1739454251736,0.74984,2666.9,2666.7,0.74986]
[1739454252527,0.74988,2666.7,2666.5,0.00562293]
[1739454252830,0.00562293,2667.1,2666.5,0.00562293]
[1739454253224,0.74984,2666.9,2666.7,0.74986]
[1739454253426,0.74985,2666.8,2666.7,0.74986]
[1739454253621,0.00562293,2667.1,2666.7,0.74986]
[1739454253832,0.74991,2666.6,2666.5,0.00562293]
[1739454254335,0.74989,2666.7,2666.6,0.74989]
[1739454254528,2.5262,2667.0,2666.6,3.2078]
[1739454254727,0.74989,2666.7,2666.6,0.74989]
[1739454255029,0.74991,2666.6,2666.5,0.00562293]
[1739454257228,5.3568,2666.9,2666.5,0.00562293]
[1739454257229,3.2078,2666.9,2666.5,0.00562293]
[1739454257427,0.74984,2666.9,2666.8,0.74985]
[1739454257733,0.74983,2666.9,2666.8,0.74984]
[1739454258236,0.74988,2666.7,2666.6,3.95769]
[1739454258533,0.74986,2666.8,2666.7,0.74986]
[1739454259029,0.00562293,2667.1,2666.6,3.2078]
[1739454259246,0.74982,2667.0,2666.9,0.7498]
[1739454259535,0.74985,2666.9,2666.8,0.74984]
[1739454260932,0.00562293,2667.1,2666.6,5.6271]
[1739454261230,0.74988,2666.7,2666.6,3.95768]
[1739454261830,0.74988,2666.7,2666.6,3.2078]
[1739454262137,1.87451,2667.0,2666.5,0.00562293]
[1739454262429,0.74991,2666.6,2666.5,0.00562293]
[1739454264939,0.75005,2666.1,2666.0,3.2078]
[1739454265530,0.75019,2665.6,2665.5,3.958]
[1739454265737,0.75019,2665.6,2665.5,3.5164422]
[1739454265930,0.75027,2665.3,2665.2,3.2078]
[1739454266235,3.2078,2665.4,2664.7,40.8]
[1739454266436,3.2078,2665.4,2665.0,0.00562293]
[1739454266437,0.75033,2665.1,2665.0,0.00562293]
[1739454267039,0.7503,2665.2,2665.0,0.00562293]
[1739454267242,2.5401,2665.3,2665.0,0.00562293]
[1739454267643,3.29039,2665.3,2665.0,0.75596293]
[1739454267937,2.5401,2665.3,2665.0,0.00562293]
[1739454268139,0.75033,2665.1,2665.0,0.00562293]
[1739454270240,3.95813,2665.1,2665.0,0.00562293]
[1739454270432,1.87598,2664.9,2663.8,7.9871]
[1739454270636,3.2078,2664.5,2663.8,8.283876]
[1739454270832,3.2078,2664.5,2663.8,7.9871]
[1739454271038,0.75053,2664.4,2663.8,7.9871]
[1739454271246,3.2078,2664.5,2663.8,7.9871]
[1739454271445,3.2078,2664.5,2664.0,0.75063]
[1739454271641,0.75056,2664.3,2664.0,0.75062]
[1739454271944,3.2078,2664.5,2664.0,0.75063]
[1739454272146,3.2078,2664.5,2663.9,0.00562293]
[1739454272147,3.2078,2664.5,2664.1,3.2078]
[1739454272549,2.5129,2664.7,2664.2,0.75058]
[1739454272550,0.75054,2664.4,2664.2,0.75058]
[1739454272747,0.75054,2664.4,2663.9,0.00562293]
[1739454272748,2.5129,2664.7,2663.9,0.00562293]
[1739454272943,0.75058,2664.2,2664.0,0.75063]
[1739454273142,2.5129,2664.7,2663.9,0.00562293]
[1739454273346,0.75059,2664.2,2664.0,0.75063]
[1739454273844,3.2078,2664.5,2664.0,0.75063]
[1739454274039,3.2078,2664.5,2664.0,0.75064]
[1739454274258,0.75061,2664.1,2663.9,0.75627293]
[1739454274644,3.2078,2664.5,2663.9,0.75627293]
[1739454274645,3.2078,2664.5,2663.9,0.00562293]
[1739454274843,0.75062,2664.1,2663.9,0.75626293]
[1739454275040,3.2078,2664.5,2663.9,0.00562293]
[1739454275243,3.2078,2664.5,2664.2,0.75056]
[1739454275753,3.2078,2664.5,2664.4,0.75053]
[1739454275950,3.95832,2664.5,2664.3,0.75054]
[1739454276249,0.75057,2664.3,2664.2,0.75057]
[1739454276851,0.75058,2664.2,2664.1,3.9584]
[1739454277048,0.75058,2664.2,2664.1,3.2078]
[1739454277350,0.75064,2664.0,2663.9,0.00562293]
[1739454278557,1.87665,2664.0,2663.4,3.2078]
[1739454278850,3.2078,2663.9,2663.4,3.2078]
[1739454279047,0.75078,2663.5,2663.4,3.2078]
[1739454279247,0.75082,2663.4,2663.2,0.75086]
[1739454279452,3.2078,2663.9,2663.1,3.2078]
[1739454279655,0.75082,2663.4,2663.1,3.2078]
[1739454279853,0.75082,2663.4,2663.2,0.75085]
[1739454280053,0.00562293,2663.6,2663.2,0.75085]
[1739454280250,0.75089,2663.1,2663.0,40.80562293]
[1739454280453,4.35605,2663.5,2663.0,0.31331283]
[1739454280651,0.75089,2663.1,2663.0,0.31331283]
[1739454281053,0.75089,2663.1,2663.0,1.06423283]
[1739454281559,0.75082,2663.4,2663.3,0.75082]
[1739454281759,2.4791,2663.5,2663.2,0.75085]
[1739454282059,2.47666802,2663.5,2663.0,0.31331283]
[1739454282260,0.75086,2663.2,2663.1,3.2078]
[1739454283065,2.47666802,2663.5,2663.1,3.2078]
[1739454283255,0.75083,2663.4,2663.3,0.75084]
[1739454283455,0.75085,2663.3,2663.2,0.75085]
[1739454283656,0.75085,2663.3,2663.1,3.2078]
[1739454283657,0.75081,2663.4,2663.3,0.75083]
[1739454283858,0.75084,2663.3,2663.2,0.75085]
[1739454284048,3.96418293,2663.6,2663.5,0.75078]
[1739454284255,0.00562293,2663.6,2663.5,0.75078]
[1739454284453,0.75057,2664.3,2663.5,8.145]
[1739454284659,3.2078,2664.5,2664.2,0.75057]
[1739454284954,0.75055,2664.4,2663.9,7.06523476]
[1739454285154,0.75055,2664.4,2664.2,0.75057]
[1739454285457,3.2078,2664.5,2663.9,3.2078]
[1739454285658,0.75064,2664.0,2663.9,3.2078]
[1739454285861,3.2078,2664.5,2663.9,3.2078]
[1739454286161,3.2078,2664.5,2664.0,0.75063]
[1739454286358,0.75061,2664.2,2664.0,0.75063]
[1739454286562,0.75061,2664.1,2663.9,3.95845]
[1739454286763,3.2078,2664.5,2663.6,5.6516]
[1739454287057,1.87645,2664.3,2663.7,0.75071]
[1739454287254,1.87645,2664.3,2663.6,5.6516]
[1739454287453,0.75053,2664.4,2663.8,0.75068]
[1739454287654,0.75069,2663.8,2663.7,0.7507]
[1739454287853,0.75068,2663.9,2663.6,5.6516]
[1739454288056,5.08408,2664.5,2663.9,0.75066]
[1739454288253,0.75068,2663.9,2663.7,0.75072]
[1739454288461,0.75069,2663.8,2663.7,0.75072]
[1739454288856,3.2078,2664.5,2663.6,5.6516]
[1739454289056,0.00562293,2664.6,2663.3,3.2078]
[1739454289057,3.85743476,2664.1,2663.3,3.2078]
[1739454289361,3.85743476,2664.1,2663.1,3.95868]
[1739454289362,0.75088,2663.2,2663.1,3.95868]
[1739454289562,0.75088,2663.2,2663.1,3.2078]
[1739454292060,0.75088,2663.2,2663.0,0.31331283]
[1739454292061,0.75089,2663.1,2663.0,0.31331283]
[1739454292262,7.06523476,2663.2,2662.3,2.3307]
[1739454292464,7.06523476,2663.2,2662.2,3.2078]
[1739454292465,3.2078,2662.8,2662.0,2.4899]
[1739454292765,0.7511,2662.4,2662.2,0.75114]
[1739454292967,1.87752,2662.7,2662.1,3.2078]
[1739454293169,0.7511,2662.4,2662.1,3.95895]
[1739454293367,0.7511,2662.4,2662.1,3.9645937]
[1739454293669,0.0056337,2662.7,2662.1,3.2134337]
[1739454293670,0.75115,2662.2,2662.1,3.2134337]
[1739454293862,0.75115,2662.2,2662.1,0.0056337]
[1739454294259,3.2078,2662.5,2662.1,0.0056337]
[1739454294565,2.144,2662.6,2662.1,0.0056337]
[1739454294771,0.75111,2662.4,2662.1,0.7567837]
[1739454294970,2.144,2662.6,2662.1,3.9645837]
[1739454294971,0.75107,2662.5,2662.1,3.9645837]
[1739454295162,2.144,2662.6,2662.1,3.2134337]
[1739454295467,0.7511,2662.4,2662.1,0.7568037]
[1739454295662,2.1486337,2662.7,2662.1,3.2134337]
[1739454296060,0.75114,2662.3,2662.1,3.2134337]
[1739454296269,2.1486337,2662.7,2662.1,3.2134337]
[1739454296473,0.75105,2662.6,2662.3,0.75112]
[1739454296772,0.75105,2662.6,2662.1,3.2134337]
[1739454297071,0.0056337,2662.7,2662.6,0.75103]
[1739454297264,0.0056337,2662.7,2662.5,0.75104]
[1739454297566,0.0056337,2662.7,2662.6,0.75103]
[1739454297875,0.0056337,2662.7,2662.6,40.8]
[1739454298168,0.0056337,2662.7,2662.6,0.75103]
[1739454298671,0.0056337,2662.7,2662.6,41.55103]
[1739454299169,0.0056337,2662.7,2662.6,0.75103]
[1739454299356,0.7566337,2662.7,2662.5,3.2078]
[1739454299562,0.75103,2662.6,2662.5,44.0078]
[1739454299767,0.75112,2662.3,2662.2,5.5871]
[1739454299966,0.75115,2662.2,2662.1,0.0056337]
[1739454301166,0.75115,2662.2,2661.1,2.4321]
[1739454301167,0.75143,2661.2,2661.1,2.4321]
[1739454301467,1.87851,2661.3,2660.6,5.7512]
[1739454301663,3.2078,2661.2,2660.6,3.50511908]
[1739454301870,3.85743476,2661.1,2660.6,3.50511908]
[1739454302167,0.75156,2660.8,2660.6,3.50511908]
[1739454302470,0.75154,2660.8,2660.6,3.51075278]
[1739454302666,8.75796846,2661.1,2660.6,3.51075278]
[1739454302667,0.75153,2660.9,2660.6,3.51075278]
[1739454302861,8.75796846,2661.1,2660.6,3.51075278]
[1739454303064,0.75157,2660.7,2660.6,3.51075278]
[1739454303667,0.75157,2660.7,2660.6,0.30295278]
[1739454303870,0.75157,2660.7,2660.6,0.0056337]
[1739454305069,0.75157,2660.7,2659.8,3.2078]
[1739454305070,7.87893,2660.7,2659.8,3.2078]
[1739454305370,3.85743476,2660.3,2659.8,3.2078]
[1739454305569,3.85743476,2660.3,2659.4,2.5666]
[1739454305570,3.2078,2660.1,2659.4,5.7744]
[1739454305764,0.75187,2659.7,2659.4,3.51345598]
[1739454305961,3.85743476,2660.0,2659.4,3.51345598]
[1739454306163,0.75191,2659.5,2659.4,0.30565598]
[1739454306362,0.75194,2659.4,2659.3,0.00376003]
[1739454306574,3.85743476,2660.0,2659.3,0.30512673]
[1739454306770,0.0056337,2659.6,2659.5,3.95971]
[1739454307767,0.75158,2660.7,2659.5,50.0078]
[1739454308074,19.674,2660.9,2660.3,3.2078]
[1739454308374,0.7516,2660.6,2660.3,3.95946]
[1739454308572,0.75161,2660.6,2660.3,3.2078]
[1739454308870,0.75165,2660.4,2660.3,3.2078]
[1739454309376,9.2078,2660.4,2659.6,2.4805]
[1739454309571,3.2078,2660.1,2659.4,2.4539]
[1739454309766,3.2078,2660.1,2659.4,3.20581]
[1739454310073,3.2078,2660.1,2659.5,3.2078]
[1739454310372,0.7519,2659.6,2659.4,2.4539]
[1739454310586,7.06523476,2660.3,2659.4,2.4539]
[1739454310876,0.7519,2659.6,2659.3,3.51141445]
[1739454311178,0.75194,2659.4,2659.3,0.30361445]
[1739454312273,6.75137476,2659.4,2659.3,0.29798075]
[1739454312470,1.87992,2659.3,2658.2,5.5919]
[1739454312770,3.2078,2659.0,2658.2,5.5919]
[1739454313165,0.7521,2658.9,2658.5,3.2078]
[1739454313366,2.142,2659.1,2658.2,5.89396212]
[1739454313569,0.0056337,2659.0,2658.5,3.2078]
[1739454314079,0.0056337,2659.0,2658.5,3.95997]
[1739454314281,0.0056337,2659.0,2658.5,3.2078]
[1739454314574,0.0056337,2659.0,2658.4,0.0056337]
[1739454314575,0.0056337,2659.0,2658.9,0.75208]
[1739454314879,0.0056337,2659.0,2658.8,3.2078]
[1739454315079,3.2078,2658.9,2658.4,0.0056337]
[1739454315276,0.75219,2658.5,2658.4,0.0056337]
[1739454315868,8.1169,2658.9,2658.4,3.2134337]
[1739454316167,5.6502,2658.9,2658.4,0.0056337]
[1739454316366,0.75219,2658.5,2658.4,0.0056337]
[1739454316770,0.75218,2658.6,2658.4,0.0056337]
[1739454317078,0.0056337,2659.0,2658.4,3.2134337]
[1739454317378,0.75219,2658.5,2658.4,0.0056337]
[1739454318577,13.11112476,2658.5,2658.4,0.0056337]
[1739454318979,7.11112476,2658.5,2658.4,0.0056337]
[1739454319279,13.11112476,2658.5,2658.4,0.0056337]
[1739454320177,9.25369,2658.5,2658.4,0.0056337]
[1739454320377,7.11112476,2658.5,2658.4,0.0056337]
[1739454320967,3.25369,2658.5,2658.4,0.0056337]
[1739454321678,9.25369,2658.5,2658.4,0.0056337]
[1739454322074,3.25369,2658.5,2658.4,0.0056337]
[1739454322581,7.11112476,2658.5,2658.4,0.0056337]
[1739454322769,7.11112476,2658.5,2658.4,3.7e-06]
[1739454322970,16.28165268,2658.5,2656.4,3.85743476]
[1739454323172,5.089,2657.5,2656.6,3.2078]
[1739454323371,3.2078,2657.5,2657.1,0.75258]
[1739454323571,3.2078,2657.5,2656.6,44.0078]
[1739454324379,0.00564483,2657.3,2657.2,3.96036]
[1739454324579,19.697,2658.0,2657.2,3.96036]
[1739454324778,5.3498,2658.5,2657.7,3.2078]
[1739454324985,5.3498,2658.5,2658.0,3.2078]
[1739454325175,0.75228,2658.2,2658.1,40.8]
[1739454325374,0.75228,2658.2,2657.3,7.5158]
[1739454325375,1.8808,2658.1,2657.3,7.5158]
[1739454325574,0.7525,2657.4,2657.3,4.9465]
[1739454325881,0.7524,2657.8,2657.4,0.00564483]
[1739454326185,3.21344483,2658.0,2657.5,3.2078]
[1739454326375,0.75247,2657.5,2657.4,0.00564483]
[1739454326881,10.02319,2657.5,2656.7,2.5273]
[1739454327084,5.08918,2657.3,2656.7,2.5273]
[1739454327285,3.2078,2657.3,2656.7,2.5273]
[1739454327678,3.2078,2657.4,2656.7,2.5273]
[1739454327877,0.7526,2657.1,2656.8,0.75265]
[1739454328078,3.2078,2657.4,2656.8,3.96046]
[1739454328279,1.88133,2657.3,2656.7,43.3273]
[1739454328483,3.2078,2657.4,2656.7,43.3273]
[1739454328678,3.2078,2657.1,2656.5,3.2078]
[1739454328874,0.75279,2656.4,2656.3,5.1106]
[1739454329079,0.75279,2656.4,2656.3,2.5273]
[1739454329282,3.2078,2656.7,2656.1,3.2078]
[1739454329483,0.75279,2656.4,2656.1,3.2078]
[1739454329881,0.00564483,2656.6,2656.1,3.2078]
[1739454330184,0.00564483,2656.6,2656.4,0.75278]
[1739454330388,0.75839483,2656.6,2656.3,2.568]
[1739454330580,0.00564483,2656.6,2655.9,3.2078]
[1739454330780,7.78293146,2656.6,2655.9,3.2078]
[1739454330980,0.75289,2656.1,2655.9,3.2078]
[1739454331189,0.75304,2655.6,2655.4,2.4069]
[1739454331385,4.0234,2655.8,2655.0,2.568]
[1739454331586,3.2078,2655.6,2655.0,2.568]
[1739454331888,2.141,2655.8,2655.0,46.5758]
[1739454332076,5.3498,2656.2,2655.3,3.2078]
[1739454332281,0.75288,2656.1,2655.3,3.2078]
[1739454332481,19.702,2656.4,2655.8,3.2078]
[1739454332782,0.7529,2656.0,2655.7,3.96077]
[1739454332989,3.2078,2656.3,2655.8,3.2078]
[1739454333184,3.2078,2656.3,2655.4,3.2078]
[1739454333492,3.2078,2656.3,2655.9,0.7529]
[1739454333493,0.75284,2656.2,2655.9,0.7529]
[1739454333787,3.2078,2656.3,2655.2,3.2078]
[1739454333991,3.2078,2656.3,2655.1,4.5181]
[1739454333992,3.2078,2656.3,2655.3,3.2078]
[1739454334193,3.2078,2656.3,2655.5,3.2078]
[1739454334494,0.75288,2656.1,2655.8,0.75294]
[1739454334686,19.702,2656.4,2655.9,3.2078]
[1739454334883,19.702,2656.4,2656.3,0.75281]
[1739454335189,0.75838483,2656.6,2656.3,0.7528]
[1739454335390,0.75276,2656.5,2656.2,3.2078]
[1739454335591,0.00564483,2656.6,2655.9,12.7343]
[1739454335785,0.75839483,2656.6,2656.3,0.7528]
[1739454335983,0.00564483,2656.6,2656.2,3.2078]
[1739454336176,0.75281,2656.3,2656.2,3.2078]
[1739454336382,0.00564483,2656.6,2655.9,12.7343]
[1739454336585,0.00564483,2656.6,2656.2,3.2078]
[1739454336792,0.00564483,2656.6,2656.3,0.75281]
[1739454336997,0.75276,2656.5,2656.3,0.75281]
[1739454337293,0.00564483,2656.6,2656.4,3.2078]
[1739454337483,0.00564483,2656.6,2656.5,0.75276]
[1739454337683,19.711,2657.5,2656.4,13.23075]
[1739454337984,19.711,2657.5,2656.8,3.2078]
[1739454338192,2.141,2657.7,2657.1,3.2078]
[1739454338583,3.2078,2658.3,2657.4,3.2078]
[1739454338788,3.2078,2658.3,2657.7,3.2078]
[1739454338993,3.2078,2658.3,2657.6,3.96024]
[1739454338994,0.00564483,2657.7,2657.6,3.96024]
[1739454339194,0.00564483,2657.7,2657.2,3.2078]
[1739454339489,0.00564483,2657.7,2657.4,3.21344483]
[1739454339790,21.853,2658.5,2657.5,2.141]
[1739454339981,3.27309879,2658.4,2657.7,3.2078]
[1739454340291,3.27309879,2658.4,2657.5,2.141]
[1739454340292,3.27309879,2658.4,2657.9,3.2078]
[1739454340596,0.06529879,2658.4,2657.9,3.2078]
[1739454340889,0.06529879,2658.4,2657.4,0.00564483]
[1739454340890,0.75247,2657.5,2657.4,0.00564483]
[1739454342589,3.2078,2658.1,2657.4,0.00564483]
[1739454342794,6.71048663,2658.2,2657.4,0.00564483]
[1739454342795,2.141,2658.2,2657.5,3.2078]
[1739454342990,3.27874362,2658.4,2657.8,3.2078]
[1739454343187,0.07094362,2658.4,2658.1,3.2078]
[1739454343389,0.75228,2658.2,2657.9,0.75235]
[1739454343589,0.07094362,2658.4,2658.0,3.2078]
[1739454343995,0.07094362,2658.4,2658.3,3.96005]
[1739454344389,0.01503,2658.9,2658.8,0.75211]
[1739454344588,0.01503,2658.9,2658.8,3.95991]
[1739454345801,19.708,2659.9,2658.8,7.77728663]
[1739454345988,19.708,2659.9,2659.4,3.2078]
[1739454346491,19.708,2659.9,2659.7,3.2078]
[1739454346689,5.6237,2660.6,2659.7,3.2078]
[1739454346890,2.5711,2661.2,2660.5,3.2078]
[1739454347084,2.5711,2661.2,2660.6,3.2078]
[1739454347284,3.2078,2661.8,2660.6,3.2078]
[1739454347490,0.00564483,2661.1,2661.0,3.2078]
[1739454347996,0.00564483,2661.1,2660.7,3.2078]
[1739454349402,0.00564483,2661.1,2660.5,3.2078]
[1739454349698,0.00564483,2661.1,2660.1,8.2723]
[1739454349699,3.2078,2660.9,2660.1,8.2723]
[1739454349899,0.00564483,2661.1,2660.4,3.2078]
[1739454350092,0.75158,2660.7,2660.4,3.2078]
[1739454350291,0.00564483,2661.1,2660.4,3.2078]
[1739454350899,3.2078,2660.7,2660.1,2.5609]
[1739454351093,0.75177,2660.0,2659.9,0.00564483]
[1739454352689,2.138,2660.6,2659.9,3.21344483]
[1739454352898,0.7517,2660.3,2659.9,3.21344483]
[1739454353098,2.138,2660.6,2659.9,3.21344483]
[1739454353295,0.75177,2660.0,2659.9,3.21344483]
[1739454353701,2.138,2660.6,2659.9,3.21344483]
[1739454353902,2.138,2660.6,2659.9,0.00564483]
[1739454354201,3.2078,2660.7,2660.1,3.2078]
[1739454354398,0.75161,2660.6,2660.2,0.75169]
[1739454354594,0.75166,2660.4,2660.1,3.2078]
[1739454354799,3.2078,2660.7,2660.1,3.2078]
[1739454355097,0.75167,2660.4,2660.1,3.2078]
[1739454355293,3.2078,2660.7,2660.1,3.2078]
[1739454355496,0.75162,2660.6,2660.2,0.7517]
[1739454355693,3.2078,2660.7,2660.1,3.2078]
[1739454355900,0.75177,2660.0,2659.9,0.00564483]
[1739454359299,0.74841553,2660.0,2659.9,0.00564483]
[1739454360003,6.74841553,2660.0,2659.9,4.83e-06]
[1739454361011,8.88541553,2660.0,2659.9,4.83e-06]
[1739454361800,1.87963,2659.8,2658.0,2.5013]
[1739454362102,0.75239,2657.8,2657.7,3.2078]
[1739454362303,3.2078,2658.5,2657.7,3.2078]
[1739454362304,5.3448,2658.5,2657.7,3.2078]
[1739454362509,0.75231,2658.1,2657.7,3.9602]
[1739454362709,5.3448,2658.5,2657.8,0.75237]
[1739454363012,5.3448,2658.5,2657.7,3.9602]
[1739454363013,0.75232,2658.1,2657.7,3.9602]
[1739454363306,0.00564483,2658.2,2657.7,3.2078]
[1739454363604,0.75239,2657.8,2657.7,3.2078]
[1739454363810,3.21344483,2658.2,2657.6,0.00564483]
[1739454364012,0.75242,2657.7,2657.6,0.00564483]
[1739454364202,0.75242,2657.7,2657.6,4.83e-06]